bitfinex/quotes_SOLUSD_20220104
["timestamp","ask_amount","ask_price","bid_price","bid_amount"]
[1641336889963,2.20850786,168.91,168.81,1.2564]
[1641336890165,1.94850786,168.91,168.81,1.2564]
[1641336890364,1.94850786,168.91,168.81,1.5164]
[1641336891465,0.5,168.91,168.81,2.0164]
[1641336891965,32.2654,168.92,168.81,2.0164]
[1641336892574,9.02,168.92,168.81,2.0164]
[1641336893371,9.28,168.92,168.81,2.0164]
[1641336897001,9.02,168.92,168.81,2.0164]
[1641336897301,0.5,168.92,168.81,2.0164]
[1641336897700,32.5683,168.95,168.81,2.0164]
[1641336897900,9.02,168.95,168.81,2.0164]
[1641336898505,9.28,168.95,168.81,2.0164]
[1641336898905,9.02,168.95,168.81,2.0164]
[1641336902908,10.46850786,168.95,168.81,2.0164]
[1641336903108,24.1467,168.94,168.81,1.7564]
[1641336903509,24.9067,168.94,168.81,1.7564]
[1641336903710,8.52,168.93,168.81,1.7564]
[1641336903909,9.02,168.93,168.81,1.7564]
[1641336904113,9.28,168.93,168.81,1.7564]
[1641336904309,9.28,168.93,168.81,2.0164]
[1641336904710,9.28,168.93,168.81,1.7564]
[1641336906011,9.28,168.93,168.81,2.0164]
[1641336907412,23.1874,168.92,168.81,2.0164]
[1641336907813,23.9474,168.92,168.81,2.0164]
[1641336908614,25.2983,168.92,168.81,2.0164]
[1641336913420,25.2983,168.92,168.81,1.7564]
[1641336914424,33.8183,168.92,168.81,1.7564]
[1641336914620,33.8183,168.92,168.81,2.0164]
[1641336920236,33.8183,168.92,168.81,1.7564]
[1641336921636,33.8183,168.92,168.81,2.0164]
[1641336923458,33.8183,168.92,168.81,1.7564]
[1641336926359,33.8183,168.92,168.81,1.2564]
[1641336926559,33.8183,168.92,168.81,1.7564]
[1641336928863,33.8183,168.92,168.81,2.0164]
[1641336932771,33.8183,168.92,168.81,1.7564]
[1641336933370,33.8183,168.92,168.81,1.2564]
[1641336933882,35.26680786,168.92,168.81,1.2564]
[1641336935876,35.26680786,168.92,168.81,1.7564]
[1641336936977,35.26680786,168.92,168.81,1.2564]
[1641336943790,44.15540786,168.92,168.81,1.2564]
[1641336947498,35.00680786,168.92,168.81,1.2564]
[1641336947898,35.00680786,168.92,168.81,1.7564]
[1641336948099,33.5583,168.92,168.81,1.7564]
[1641336949825,33.8183,168.92,168.81,1.7564]
[1641336952829,32.4674,168.92,168.81,1.7564]
[1641336953029,32.4674,168.92,168.81,2.0164]
[1641336957636,32.4674,168.92,168.81,1.7564]
[1641336958433,32.4674,168.92,168.81,1.2564]
[1641336964847,32.4674,168.92,168.81,1.7564]
[1641336965049,32.4674,168.92,168.81,1.2564]
[1641336968176,33.91590786,168.92,168.81,1.2564]
[1641336968374,42.80450786,168.92,168.81,1.2564]
[1641336969779,8.8891,168.91,168.79,23.7039]
[1641336969978,8.52,168.9,168.79,23.7039]
[1641336970279,9.96850786,168.9,168.76,1.2648]
[1641336970480,23.95970786,168.89,168.77,1.3242]
[1641336970679,8.52,168.88,168.77,1.3242]
[1641336970881,23.4148,168.87,168.77,1.3242]
[1641336971080,8.52,168.86,168.77,1.3242]
[1641336971480,10.72850786,168.86,168.77,1.3242]
[1641336972784,11.98140786,168.86,168.77,1.3242]
[1641336973683,11.98140786,168.86,168.74,23.7408]
[1641336973982,11.98140786,168.86,168.74,25.5407]
[1641336975585,23.3242,168.85,168.74,25.5407]
[1641336975786,8.52,168.84,168.74,25.5407]
[1641336975984,9.28,168.84,168.74,25.5407]
[1641336985288,18.1507,168.84,168.74,25.5407]
[1641337006640,18.1507,168.84,168.74,25.0407]
[1641337007237,17.6507,168.84,168.74,25.0407]
[1641337009042,19.09920786,168.84,168.74,25.0407]
[1641337013344,19.09920786,168.84,168.66,8.52]
[1641337013544,24.4166,168.83,168.69,1.6082]
[1641337013744,8.52,168.82,168.69,2.1082]
[1641337013944,10.46850786,168.82,168.69,2.1082]
[1641337014145,10.72850786,168.82,168.69,2.1082]
[1641337014644,10.72850786,168.82,168.7,1.2381]
[1641337014846,10.72850786,168.82,168.7,1.7381]
[1641337015048,10.72850786,168.82,168.7,1.9981]
[1641337019050,9.28,168.82,168.7,1.9981]
[1641337029391,9.28,168.82,168.7,1.6421]
[1641337036400,9.28,168.82,168.7,0.8821]
[1641337036601,10.72850786,168.82,168.7,0.8821]
[1641337036803,117.16850786,168.82,168.69,23.6199]
[1641337037004,123.3493634,168.82,168.69,23.6199]
[1641337037403,8.8955,168.8,168.64,92.7]
[1641337037605,8.52,168.79,168.65,24.4789]
[1641337037804,9.96850786,168.79,168.65,24.4789]
[1641337038108,1.44850786,168.78,168.65,24.9789]
[1641337038306,8.52,168.77,168.65,24.9789]
[1641337038605,8.78,168.77,168.65,24.9789]
[1641337038833,9.28,168.77,168.65,24.4789]
[1641337039006,10.5763,168.77,168.65,24.9789]
[1641337039805,10.5763,168.77,168.65,24.4789]
[1641337040204,10.0763,168.77,168.65,24.4789]
[1641337041407,10.5763,168.77,168.65,24.4789]
[1641337042617,20.92220786,168.77,168.6,1.3529]
[1641337042810,12.02480786,168.77,168.61,1.27]
[1641337043213,12.02480786,168.77,168.61,1.77]
[1641337043709,8.8985,168.75,168.61,1.77]
[1641337043910,8.52,168.74,168.61,1.77]
[1641337044109,8.78,168.74,168.61,1.77]
[1641337044311,9.28,168.74,168.61,1.77]
[1641337045411,18.1787,168.74,168.61,1.77]
[1641337045814,9.28,168.74,168.61,1.77]
[1641337046111,1.44850786,168.73,168.61,0.5]
[1641337046340,8.52,168.72,168.61,0.5]
[1641337046510,8.78,168.72,168.58,1.2767]
[1641337046710,9.28,168.72,168.58,1.2767]
[1641337046910,9.28,168.72,168.58,2.0367]
[1641337049613,9.28,168.72,168.58,1.7767]
[1641337050014,18.1796,168.72,168.58,1.7767]
[1641337051016,18.1796,168.72,168.58,2.0367]
[1641337051417,26.0587,168.71,168.58,2.0367]
[1641337051617,8.52,168.7,168.58,2.0367]
[1641337051817,9.02,168.7,168.58,2.0367]
[1641337052017,9.28,168.7,168.58,2.0367]
[1641337053422,9.28,168.7,168.58,1.7767]
[1641337054947,9.28,168.7,168.58,2.0367]
[1641337056549,9.02,168.7,168.58,2.0367]
[1641337058048,9.28,168.7,168.58,2.0367]
[1641337058451,9.02,168.7,168.58,2.0367]
[1641337058749,8.52,168.7,168.58,2.0367]
[1641337059148,8.52,168.7,168.58,1.7767]
[1641337059349,9.02,168.7,168.58,1.7767]
[1641337059755,9.28,168.7,168.58,1.7767]
[1641337060957,9.28,168.7,168.58,2.0367]
[1641337062058,9.28,168.7,168.58,1.7767]
[1641337063460,9.28,168.7,168.58,2.0367]
[1641337064863,33.7693,168.7,168.58,2.0367]
[1641337065767,33.2693,168.7,168.58,2.0367]
[1641337066768,33.7693,168.7,168.58,2.0367]
[1641337067167,33.5093,168.7,168.58,2.0367]
[1641337068572,33.7693,168.7,168.58,2.0367]
[1641337068968,9.28,168.7,168.58,2.0367]
[1641337069578,9.28,168.7,168.58,1.7767]
[1641337072699,9.28,168.7,168.58,2.0367]
[1641337074802,9.02,168.7,168.58,2.0367]
[1641337076005,9.28,168.7,168.58,2.0367]
[1641337087718,1.44850786,168.69,168.58,2.0367]
[1641337087921,8.52,168.68,168.58,2.0367]
[1641337088319,8.78,168.68,168.58,2.0367]
[1641337095866,9.28,168.68,168.58,2.0367]
[1641337096066,8.78,168.68,168.58,2.0367]
[1641337098073,8.52,168.68,168.58,2.0367]
[1641337100574,9.96850786,168.68,168.58,2.0367]
[1641337100773,8.52,168.68,168.58,2.0367]
[1641337100973,9.02,168.68,168.58,2.0367]
[1641337103201,8.52,168.68,168.58,2.0367]
[1641337115917,8.78,168.68,168.58,2.0367]
[1641337120723,8.52,168.68,168.58,2.0367]
[1641337123526,8.52,168.68,168.58,1.7767]
[1641337123926,8.78,168.68,168.58,1.7767]
[1641337125030,8.78,168.68,168.58,2.0367]
[1641337128859,8.52,168.68,168.58,2.0367]
[1641337129631,8.78,168.68,168.58,2.0367]
[1641337131038,8.52,168.68,168.58,2.0367]
[1641337133842,8.78,168.68,168.58,2.0367]
[1641337136667,8.78,168.68,168.58,1.7767]
[1641337138068,8.78,168.68,168.58,2.0367]
[1641337143977,9.28,168.68,168.58,2.0367]
[1641337145373,9.28,168.68,168.58,1.7767]
[1641337146877,9.02,168.68,168.58,2.0367]
[1641337147275,0.5,168.68,168.58,2.0367]
[1641337147476,9.02,168.71,168.58,2.0367]
[1641337148079,23.9485,168.7,168.58,2.0367]
[1641337148576,24.7085,168.7,168.58,2.0367]
[1641337151278,33.2285,168.7,168.58,2.0367]
[1641337152982,9.28,168.7,168.58,2.0367]
[1641337153783,8.78,168.7,168.58,2.0367]
[1641337153986,8.52,168.7,168.58,2.0367]
[1641337154386,8.52,168.73,168.58,2.0367]
[1641337154585,24.7137,168.72,168.58,2.0367]
[1641337156287,8.52,168.75,168.59,8.52]
[1641337156492,32.0696,168.75,168.6,24.7615]
[1641337156887,32.0696,168.75,168.61,8.52]
[1641337157087,1.60827885,168.78,168.62,102.4001]
[1641337157288,1.60827885,168.78,168.62,110.9201]
[1641337157487,1.60827885,168.78,168.62,111.6801]
[1641337157689,10.12827885,168.79,168.62,111.6801]
[1641337157888,23.5988,168.78,168.63,1.278]
[1641337158088,23.8588,168.78,168.63,7.337]
[1641337158288,23.8588,168.78,168.63,7.837]
[1641337158488,23.5988,168.78,168.64,24.4381]
[1641337158690,1.60827885,168.79,168.64,24.4381]
[1641337158894,1.60827885,168.79,168.65,8.52]
[1641337159094,1.60827885,168.79,168.65,8.78]
[1641337159290,1.60827885,168.81,168.66,23.1642]
[1641337159493,1.60827885,168.81,168.67,9.8254]
[1641337159691,1.60827885,168.81,168.67,16.0804]
[1641337159894,1.60827885,168.81,168.67,16.8404]
[1641337160191,1.60827885,168.81,168.68,24.3071]
[1641337160391,1.60827885,168.84,168.69,8.52]
[1641337160591,1.60827885,168.84,168.7,73.5843]
[1641337160791,1.60827885,168.84,168.71,8.52]
[1641337160990,1.60827885,168.84,168.72,24.948]
[1641337161192,1.60827885,168.87,168.73,8.52]
[1641337161394,1.60827885,168.87,168.73,9.02]
[1641337161594,1.60827885,168.87,168.73,9.28]
[1641337161793,101.22,168.9,168.73,9.28]
[1641337161995,101.22,168.9,168.74,26.0352]
[1641337162293,101.22,168.9,168.75,8.52]
[1641337162493,101.22,168.9,168.76,23.5155]
[1641337162922,101.22,168.9,168.76,24.2755]
[1641337163124,101.22,168.9,168.77,75.2008]
[1641337163323,101.22,168.9,168.77,75.7008]
[1641337163525,101.22,168.9,168.77,75.9608]
[1641337163723,101.22,168.9,168.78,22.9449]
[1641337163925,92.7,168.9,168.78,23.4449]
[1641337164127,92.7,168.9,168.78,23.7049]
[1641337164525,8.52,168.94,168.78,23.7049]
[1641337164724,8.52,168.94,168.79,1.342]
[1641337164925,8.52,168.94,168.79,8.859]
[1641337165125,9.02,168.94,168.79,9.119]
[1641337165326,9.02,168.94,168.8,24.3093]
[1641337165526,8.52,168.94,168.8,24.5693]
[1641337165725,8.52,168.94,168.8,25.0693]
[1641337166327,8.02,168.94,168.8,25.0693]
[1641337166734,8.52,168.94,168.8,25.0693]
[1641337167129,8.52,168.94,168.81,1.3272]
[1641337167329,8.52,168.94,168.81,1.8272]
[1641337167529,8.52,168.94,168.81,2.0872]
[1641337170239,8.02,168.94,168.81,2.0872]
[1641337170436,8.52,169.01,168.82,67.91]
[1641337170635,8.52,169.01,168.83,78.524]
[1641337170836,9.02,169.01,168.84,32.3454]
[1641337171236,9.02,169.01,168.84,37.9734]
[1641337171438,9.02,169.01,168.85,2.4887]
[1641337171840,9.02,169.01,168.85,3.2487]
[1641337172042,9.02,169.01,168.86,23.89]
[1641337172337,9.02,169.01,168.86,29.066]
[1641337172538,9.02,169.01,168.86,29.326]
[1641337172740,9.02,169.01,168.86,37.846]
[1641337173340,9.02,169.01,168.87,1.3345]
[1641337173542,9.02,169.01,168.87,10.1145]
[1641337173741,9.02,169.01,168.87,10.6145]
[1641337173973,9.02,169.01,168.88,22.8663]
[1641337174375,9.02,169.01,168.88,23.6263]
[1641337175472,9.02,169.01,168.88,23.3663]
[1641337175872,9.02,169.01,168.89,1.2358]
[1641337176073,9.02,169.01,168.89,74.4143]
[1641337176274,9.02,169.01,168.89,74.9143]
[1641337176875,9.02,169.01,168.9,22.8203]
[1641337177076,9.02,169.01,168.9,23.0803]
[1641337177273,9.02,169.01,168.9,23.5803]
[1641337178375,54.5657,169.05,168.9,23.5803]
[1641337178574,54.5657,169.05,168.9,46.8734]
[1641337178775,55.0657,169.05,168.9,46.8734]
[1641337179780,55.0657,169.05,168.91,1.2894]
[1641337179977,55.0657,169.05,168.91,2.0494]
[1641337180478,55.3257,169.05,168.91,2.0494]
[1641337180881,55.0657,169.05,168.91,2.0494]
[1641337181986,55.3257,169.05,168.91,2.0494]
[1641337182179,55.3257,169.05,168.91,1.7894]
[1641337183593,55.0657,169.05,168.91,2.0494]
[1641337185282,55.3257,169.05,168.91,2.0494]
[1641337186082,55.3257,169.05,168.91,1.7894]
[1641337187485,55.3257,169.05,168.91,2.0494]
[1641337198494,55.3257,169.05,168.91,1.7894]
[1641337198693,55.3257,169.05,168.91,1.2894]
[1641337199094,55.3257,169.05,168.9,46.1134]
[1641337199295,55.3257,169.05,168.9,23.3203]
[1641337199898,55.3257,169.05,168.9,23.5803]
[1641337200295,55.3257,169.05,168.9,0.76]
[1641337200494,55.3257,169.05,168.9,0.5]
[1641337200698,55.3257,169.05,168.88,0.5]
[1641337200895,56.77420786,169.05,168.86,1.339]
[1641337201395,61.73320475,169.05,168.86,1.839]
[1641337201598,177.58947306,169.05,168.86,1.839]
[1641337201797,177.58947306,169.05,168.86,2.099]
[1641337201996,177.58947306,169.05,168.86,1.839]
[1641337202197,186.47327306,169.05,168.86,1.839]
[1641337202498,194.75677256,169.05,168.86,1.839]
[1641337202696,185.87297256,169.05,168.83,23.844]
[1641337202897,106.44,169.03,168.83,24.344]
[1641337203097,106.44,169.03,168.83,0.5]
[1641337203098,32.6068,169.02,168.83,0.5]
[1641337203297,48.43057306,169.02,168.83,0.5]
[1641337203501,111.39899689,169.01,168.82,24.4262]
[1641337203701,8.52,169.0,168.81,75.5697]
[1641337203898,49.66377306,169.0,168.81,75.5697]
[1641337204098,112.84750475,168.99,168.81,75.5697]
[1641337204301,31.3392,168.98,168.76,26.1126]
[1641337204502,1.67045051,168.94,168.76,26.1126]
[1641337204699,8.52,168.93,168.76,26.1126]
[1641337204899,9.02,168.93,168.76,26.1126]
[1641337205102,9.28,168.93,168.76,26.1126]
[1641337205305,1.67045051,168.91,168.76,26.1126]
[1641337205499,8.52,168.9,168.76,1.5622]
[1641337205699,8.52,168.9,168.76,2.0622]
[1641337205902,9.28,168.9,168.76,2.0622]
[1641337206600,9.28,168.9,168.76,1.8022]
[1641337206798,9.28,168.9,168.76,0.5]
[1641337207001,1.67045051,168.89,168.76,0.5]
[1641337207201,8.52,168.88,168.75,25.4355]
[1641337207399,9.02,168.88,168.75,25.4355]
[1641337208201,9.02,168.88,168.75,25.6955]
[1641337208402,9.02,168.88,168.75,25.4355]
[1641337208601,9.28,168.88,168.75,0.5]
[1641337209006,9.28,168.88,168.73,109.7474]
[1641337209203,9.02,168.88,168.73,109.7474]
[1641337209905,9.02,168.88,168.74,1.2856]
[1641337210305,1.67045051,168.86,168.74,2.0456]
[1641337210704,2.17045051,168.86,168.74,2.0456]
[1641337210907,2.43045051,168.86,168.74,2.0456]
[1641337212512,2.17045051,168.86,168.74,2.0456]
[1641337213514,0.5,168.86,168.74,2.0456]
[1641337213920,2.43045051,168.87,168.74,2.0456]
[1641337216252,1.67045051,168.86,168.74,2.0456]
[1641337216549,2.43045051,168.86,168.74,2.0456]
[1641337219450,0.76,168.86,168.74,2.0456]
[1641337219849,8.52,168.87,168.74,2.0456]
[1641337219850,9.02,168.87,168.74,2.0456]
[1641337221352,2.69795647,168.86,168.75,2.28870766]
[1641337221552,2.69795647,168.86,168.75,2.54870766]
[1641337221755,3.19795647,168.86,168.75,3.04870766]
[1641337224153,8.52,168.87,168.75,3.04870766]
[1641337224356,0.5,168.87,168.75,3.04870766]
[1641337224553,8.52,168.89,168.75,3.04870766]
[1641337224754,9.02,168.89,168.75,3.04870766]
[1641337224953,0.5,168.89,168.76,8.52]
[1641337225154,0.5,168.89,168.77,23.0602]
[1641337225354,2.25435054,168.88,168.78,2.53034051]
[1641337225554,2.25435054,168.88,168.78,2.79034051]
[1641337225755,2.75435054,168.88,168.79,1.3384]
[1641337225957,2.75435054,168.88,168.79,1.5984]
[1641337227357,2.75435054,168.88,168.79,1.3384]
[1641337227557,2.75435054,168.88,168.77,23.0602]
[1641337227558,8.52,168.87,168.77,23.0602]
[1641337227757,8.52,168.87,168.71,1.2446]
[1641337227956,9.28,168.87,168.71,2.4899]
[1641337228356,9.28,168.87,168.73,79.090984]
[1641337228562,1.67045051,168.84,168.73,79.090984]
[1641337228759,2.14643864,168.83,168.73,79.590984]
[1641337228958,11.42643864,168.83,168.63,23.8524]
[1641337229258,11.42643864,168.83,168.64,8.52]
[1641337229659,22.6395,168.82,168.65,23.8407]
[1641337229861,8.52,168.81,168.66,3.00246531]
[1641337230058,2.41708823,168.8,168.66,3.00246531]
[1641337230258,10.93708823,168.8,168.67,73.9624]
[1641337230558,11.69708823,168.8,168.67,76.0132]
[1641337231161,13.36753874,168.8,168.67,76.0132]
[1641337232861,13.36753874,168.8,168.67,75.5132]
[1641337233259,13.36753874,168.8,168.67,0.26]
[1641337233461,13.36753874,168.8,168.66,3.26246531]
[1641337233663,1.67045051,168.78,168.66,3.26246531]
[1641337233861,2.16950134,168.77,168.66,3.76246531]
[1641337234365,2.66950134,168.77,168.66,3.76246531]
[1641337234563,2.66950134,168.77,168.66,5.11176531]
[1641337234963,2.16950134,168.77,168.66,4.61176531]
[1641337236165,8.52,168.78,168.66,5.11176531]
[1641337236363,9.02,168.78,168.67,24.3452]
[1641337236563,9.28,168.78,168.67,24.6052]
[1641337237165,2.33393564,168.77,168.67,24.6052]
[1641337237364,2.83393564,168.77,168.67,24.6052]
[1641337237765,2.33393564,168.77,168.67,24.6052]
[1641337237964,2.33393564,168.77,168.67,25.1052]
[1641337238965,2.33393564,168.77,168.67,24.6052]
[1641337239167,2.33393564,168.77,168.67,25.1052]
[1641337241469,1.83393564,168.77,168.67,25.1052]
[1641337242868,1.83393564,168.77,168.67,24.8452]
[1641337243066,2.59393564,168.77,168.67,24.3452]
[1641337243667,2.59393564,168.77,168.66,3.00246531]
[1641337243867,8.52,168.76,168.66,3.00246531]
[1641337244072,8.78,168.76,168.66,3.00246531]
[1641337244266,9.28,168.76,168.66,3.00246531]
[1641337245068,9.28,168.76,168.66,3.26246531]
[1641337246167,9.02,168.76,168.66,3.26246531]
[1641337246469,8.52,168.76,168.66,3.26246531]
[1641337247069,8.52,168.76,168.64,23.4713]
[1641337247273,9.02,168.76,168.64,23.9713]
[1641337247470,9.02,168.76,168.64,23.4713]
[1641337247670,9.28,168.76,168.64,23.4713]
[1641337248273,9.28,168.76,168.65,2.99057638]
[1641337248900,1.67045051,168.75,168.65,2.99057638]
[1641337249072,11.34321239,168.74,168.65,2.99057638]
[1641337249473,12.10321239,168.74,168.65,2.99057638]
[1641337249673,13.7736629,168.74,168.65,2.99057638]
[1641337251775,13.7736629,168.74,168.65,3.25057638]
[1641337252174,13.7736629,168.74,168.65,2.99057638]
[1641337252573,10.95045051,168.74,168.65,3.25057638]
[1641337252773,1.67045051,168.73,168.65,3.25057638]
[1641337252973,2.43045051,168.73,168.65,3.25057638]
[1641337253477,4.97912228,168.73,168.65,3.25057638]
[1641337253677,2.43045051,168.73,168.65,3.25057638]
[1641337253874,0.76,168.73,168.65,3.25057638]
[1641337254076,8.78,168.74,168.65,3.25057638]
[1641337254775,11.19141276,168.74,168.65,3.25057638]
[1641337255878,11.69141276,168.74,168.65,3.25057638]
[1641337260286,11.69141276,168.74,168.62,24.0422]
[1641337260686,13.36186327,168.74,168.62,24.0422]
[1641337261087,13.36186327,168.74,168.6,1.2597]
[1641337261287,1.67045051,168.72,168.61,2.5216011]
[1641337261489,2.8548816,168.71,168.61,2.5216011]
[1641337261890,3.6148816,168.71,168.61,2.5216011]
[1641337262091,5.28533211,168.71,168.61,2.5216011]
[1641337262490,5.28533211,168.71,168.57,24.5285]
[1641337262692,8.52,168.7,168.57,25.0285]
[1641337262892,9.02,168.7,168.57,25.0285]
[1641337263092,9.28,168.7,168.57,25.0285]
[1641337263494,9.28,168.7,168.58,2.37199847]
[1641337263696,1.67045051,168.69,168.58,2.37199847]
[1641337263909,2.17045051,168.69,168.58,3.13199847]
[1641337264117,2.90429791,168.68,168.58,3.13199847]
[1641337264517,3.66429791,168.68,168.58,3.13199847]
[1641337264722,3.16429791,168.68,168.58,3.13199847]
[1641337265519,3.16429791,168.68,168.59,1.2435]
[1641337265718,8.52,168.7,168.59,1.5035]
[1641337265919,9.02,168.7,168.59,24.2023]
[1641337266719,11.33350368,168.7,168.59,24.2023]
[1641337266919,11.33350368,168.7,168.59,24.7023]
[1641337268026,11.59350368,168.7,168.59,24.7023]
[1641337268428,11.33350368,168.7,168.59,24.7023]
[1641337268629,11.59350368,168.7,168.59,24.7023]
[1641337269229,11.33350368,168.7,168.59,24.7023]
[1641337269834,11.33350368,168.7,168.59,23.9423]
[1641337270032,11.59350368,168.7,168.58,2.37199847]
[1641337270331,1.44850786,168.69,168.58,2.87199847]
[1641337270532,8.52,168.68,168.58,2.87199847]
[1641337270734,3.02407402,168.67,168.58,2.87199847]
[1641337270934,3.52407402,168.67,168.58,2.87199847]
[1641337271134,3.78407402,168.67,168.58,2.87199847]
[1641337271332,1.44850786,168.66,168.58,2.87199847]
[1641337271534,0.26,168.66,168.58,2.87199847]
[1641337271733,0.76,168.66,168.58,2.87199847]
[1641337271932,0.26,168.66,168.58,2.87199847]
[1641337272335,3.28407402,168.67,168.58,2.87199847]
[1641337273733,3.78407402,168.67,168.58,2.87199847]
[1641337275168,8.52,168.66,168.58,2.87199847]
[1641337275367,9.02,168.66,168.58,2.87199847]
[1641337275666,8.78,168.66,168.58,3.13199847]
[1641337275867,9.28,168.66,168.58,3.13199847]
[1641337277168,9.28,168.66,168.58,4.45059847]
[1641337277368,9.02,168.66,168.58,4.45059847]
[1641337277571,8.52,168.66,168.58,4.45059847]
[1641337279570,2.40132758,168.69,168.58,4.45059847]
[1641337279772,2.40132758,168.69,168.59,23.2857]
[1641337279972,2.40132758,168.69,168.59,23.7857]
[1641337280372,8.52,168.71,168.59,23.7857]
[1641337280574,9.02,168.71,168.59,23.7857]
[1641337280974,9.02,168.71,168.6,1.297]
[1641337281176,8.52,168.71,168.6,1.797]
[1641337281375,3.02032178,168.7,168.61,2.6957523]
[1641337281674,3.02032178,168.7,168.61,2.9557523]
[1641337283478,3.02032178,168.7,168.61,3.4557523]
[1641337284976,3.02032178,168.7,168.61,2.9557523]
[1641337287481,3.02032178,168.7,168.62,1.3416]
[1641337287681,3.02032178,168.7,168.62,1.8416]
[1641337287884,3.02032178,168.7,168.62,2.1016]
[1641337293687,8.52,168.73,168.62,2.1016]
[1641337293913,9.02,168.73,168.62,2.1016]
[1641337294415,0.02,168.75,168.62,2.1016]
[1641337294614,0.02,168.75,168.63,22.6935]
[1641337294815,0.02,168.75,168.64,2.58692452]
[1641337295014,0.02,168.75,168.64,11.36692452]
[1641337295219,1.67045051,168.77,168.65,23.7275]
[1641337295416,1.67045051,168.77,168.66,1.3516]
[1641337295815,1.67045051,168.77,168.66,7.8766]
[1641337296015,10.19045051,168.8,168.67,24.1494]
[1641337296416,2.41403206,168.79,168.68,2.64183321]
[1641337296916,2.41403206,168.79,168.68,3.40183321]
[1641337297116,2.41403206,168.79,168.69,1.3016]
[1641337297517,2.41403206,168.79,168.69,24.7303]
[1641337298119,2.67403206,168.79,168.69,24.7303]
[1641337302321,11.19403206,168.79,168.69,24.7303]
[1641337303322,11.69403206,168.79,168.69,24.7303]
[1641337304124,11.43403206,168.79,168.69,24.7303]
[1641337306930,10.93403206,168.79,168.69,24.7303]
[1641337307330,11.69403206,168.79,168.69,24.7303]
[1641337307530,11.19403206,168.79,168.69,24.7303]
[1641337308430,11.69403206,168.79,168.69,24.7303]
[1641337308630,11.19403206,168.79,168.69,24.4703]
[1641337309432,10.93403206,168.79,168.69,24.4703]
[1641337309631,11.19403206,168.79,168.69,24.4703]
[1641337309832,10.93403206,168.79,168.69,24.4703]
[1641337310131,10.93403206,168.79,168.69,24.7303]
[1641337316239,10.93403206,168.79,168.64,1.2416]
[1641337316442,13.14253992,168.79,168.65,23.3384]
[1641337316641,22.55880823,168.79,168.65,23.3384]
[1641337316941,31.45480823,168.79,168.65,23.3384]
[1641337317140,24.5968,168.78,168.65,23.3384]
[1641337317340,8.52,168.77,168.66,2.60110645]
[1641337317641,2.81241945,168.76,168.66,2.60110645]
[1641337317840,8.52,168.75,168.63,1.2629]
[1641337318139,10.22850786,168.75,168.6,24.7021]
[1641337318342,1.44850786,168.74,168.6,25.2021]
[1641337318540,8.52,168.73,168.6,25.2021]
[1641337318939,4.34798249,168.72,168.6,25.2021]
[1641337319139,12.86798249,168.72,168.6,25.2021]
[1641337319340,1.44850786,168.71,168.6,0.26]
[1641337319542,1.44850786,168.71,168.58,74.4047]
[1641337319543,8.52,168.7,168.58,74.4047]
[1641337319743,8.52,168.7,168.58,74.9047]
[1641337319940,10.72850786,168.7,168.58,74.9047]
[1641337320168,3.00888619,168.69,168.59,26.33125919]
[1641337320346,3.50888619,168.69,168.59,26.83125919]
[1641337320547,3.00888619,168.69,168.59,26.59125919]
[1641337320750,3.50888619,168.69,168.59,27.09125919]
[1641337320948,3.00888619,168.69,168.59,27.09125919]
[1641337321651,3.76888619,168.69,168.59,27.09125919]
[1641337321851,5.21739405,168.69,168.59,27.09125919]